fUST/lending_fUST_20240708
["ID","MTS","AMOUNT","RATE_DAILY","PERIOD"]
[331461681,1720426239996,-154.87169365,0.00055005,120]
[331461682,1720426240006,-5053.07008519,0.00055112,2]
[331461683,1720426240016,-154.87169365,0.00055251,120]
[331461684,1720426240026,-154.87169365,0.00055359,120]
[331461685,1720426240036,-5053.07008519,0.00055412,2]
[331461686,1720426240045,-8222.45139837,0.00055556,30]
[331461687,1720426240054,-151.0,0.00055556,120]
[331461688,1720426240065,-10000.0011,0.00055732,4]
[331461689,1720426240074,-5053.07008519,0.00055746,2]
[331461690,1720426240083,-154.87169365,0.00055763,120]
[331461691,1720426240094,-16422.301641,0.0005579,6]
[331461692,1720426240104,-161.535327,0.000558,120]
[331461693,1720426240114,-161.535327,0.000558,120]
[331461694,1720426240127,-6090.91797408,0.000559,90]
[331461695,1720426240137,-6090.91797408,0.000559,90]
[331461696,1720426240147,-6090.91797408,0.000559,90]
[331461697,1720426240157,-6090.91797408,0.000559,90]
[331461698,1720426240167,-151.0,0.000559,120]
[331461700,1720426240178,-151.0,0.000559,120]
[331461701,1720426240189,-1197.52319115,0.000559,90]
[331461702,1720426240199,-1197.52319114,0.000559,90]
[331461703,1720426240209,-1197.52319114,0.000559,90]
[331461704,1720426240219,-1197.52319114,0.000559,90]
[331461705,1720426240229,-812.372887,0.000559,120]
[331461707,1720426240239,-812.372887,0.000559,120]
[331461708,1720426240248,-6090.91797409,0.000559,90]
[331461709,1720426240257,-6090.91797408,0.000559,90]
[331461710,1720426240267,-6090.91797408,0.000559,90]
[331461711,1720426240277,-6090.91797408,0.000559,90]
[331461712,1720426240286,-5053.07008519,0.00055948,2]
[331461713,1720426240295,-5053.07008519,0.00056334,2]
[331461714,1720426240305,-16422.301641,0.0005649,6]
[331461715,1720426240315,-5053.07008519,0.00056499,2]
[331461716,1720426240324,-6999.0,0.000565,120]
[331461717,1720426240333,-8000.0,0.000565,120]
[331461718,1720426240343,-161.535327,0.000565,120]
[331461719,1720426240353,-161.535327,0.000565,120]
[331461720,1720426240367,-151.0,0.00056568,120]
[331461721,1720426240385,-151.0,0.00056568,120]
[331461722,1720426240394,-812.372887,0.00056568,120]
[331461723,1720426240404,-812.372887,0.00056568,120]
[331461724,1720426240414,-5053.07008519,0.00056865,2]
[331461726,1720426240426,-150.59940171,0.00057177,2]
[331461727,1720426240436,-5053.07008519,0.0005719,2]
[331461728,1720426240447,-151.0,0.00057203,120]
[331461730,1720426240456,-1799.82,0.0005724,120]
[331461732,1720426240465,-151.0,0.00057302,120]
[331461734,1720426240475,-412.292981,0.00057302,120]
[331461736,1720426240484,-412.292981,0.00057302,120]
[331461737,1720426240494,-309.989735,0.00057302,120]
[331461738,1720426240503,-309.989735,0.00057302,120]
[331461739,1720426240512,-32844.6032819,0.00057302,7]
[331461740,1720426240522,-9280.62372256,0.00057312,61]
[331461741,1720426240531,-412.292981,0.00057312,120]
[331461742,1720426240541,-412.292981,0.00057312,120]
[331461743,1720426240551,-309.989735,0.00057312,120]
[331461744,1720426240560,-309.989735,0.00057312,120]
[331461745,1720426240570,-151.0,0.00057312,120]
[331461746,1720426240579,-151.0,0.00057312,120]
[331461747,1720426240588,-151.0,0.00057312,120]
[331461748,1720426240598,-812.372887,0.00057312,120]
[331461749,1720426240607,-812.372887,0.00057312,120]
[331461750,1720426240617,-161.535327,0.00057312,120]
[331461751,1720426240631,-161.535327,0.00057312,120]
[331461752,1720426240641,-88888.0,0.00057312,120]
[331461753,1720426240650,-267.854686,0.00057423,120]
[331461754,1720426240660,-267.854686,0.00057423,120]
[331461755,1720426240669,-303.361657,0.00057423,120]
[331461756,1720426240678,-303.361657,0.00057423,120]
[331461757,1720426240688,-999.0,0.00057512,120]
[331461758,1720426240697,-267.854686,0.00057513,120]
[331461759,1720426240706,-267.854686,0.00057513,120]
[331461760,1720426240716,-98533.8098457,0.00057524,7]
[331461761,1720426240731,-280.8762462,0.00057526,7]
[331461762,1720426240740,-500.0,0.00057534,2]
[331461763,1720426240749,-500.0,0.00057534,120]
[331461764,1720426240758,-500.0,0.00057534,120]
[331461765,1720426240768,-516.01750948,0.00057534,120]
[331461766,1720426240777,-500.0,0.00057534,120]
[331461767,1720426240787,-500.0,0.00057534,7]
[331461768,1720426240796,-500.0,0.00057534,120]
[331461769,1720426240805,-500.0,0.00057534,120]
[331461770,1720426240815,-500.0,0.00057534,120]
[331461771,1720426240824,-267.854686,0.00057534,120]
[331461772,1720426240834,-267.854686,0.00057534,120]
[331461773,1720426240844,-2000.0,0.00057534,120]
[331461774,1720426240853,-267.854686,0.00057534,120]
[331461775,1720426240863,-267.854686,0.00057534,120]
[331461776,1720426240879,-267.854686,0.00057534,120]
[331461777,1720426240888,-267.854686,0.00057534,120]
[331461778,1720426240898,-500.0,0.00057534,120]
[331461779,1720426240907,-503.06459543,0.00057534,120]
[331461780,1720426240915,-500.0,0.00057534,120]
[331461781,1720426240925,-500.0,0.00057534,120]
[331461782,1720426240935,-500.0,0.00057534,10]
[331461783,1720426240944,-500.0,0.00057534,120]
[331461784,1720426240952,-500.0,0.00057534,120]
[331461785,1720426240962,-500.021093,0.00057534,120]
[331461786,1720426240971,-500.0,0.00057534,120]
[331461787,1720426240980,-920.15,0.00057534,120]
[331461788,1720426240989,-500.0,0.00057534,120]
[331461789,1720426240998,-500.0,0.00057534,120]
[331461790,1720426241007,-500.0,0.00057534,2]
[331461791,1720426241017,-538.97,0.00057534,120]
[331461792,1720426241026,-532.22,0.00057534,120]
[331461793,1720426241035,-500.0,0.00057534,120]
[331461794,1720426241044,-500.0,0.00057534,120]
[331461795,1720426241054,-500.0,0.00057534,120]
[331461796,1720426241063,-516.67,0.00057534,120]
[331461797,1720426241072,-500.0,0.00057534,120]
[331461798,1720426241082,-500.0,0.00057534,120]
[331461799,1720426241091,-500.0,0.00057534,120]
[331461800,1720426241100,-500.0,0.00057534,120]
[331461801,1720426241109,-500.0,0.00057534,120]
[331461802,1720426241118,-500.0,0.00057534,120]
[331461803,1720426241130,-500.0,0.00057534,120]
[331461804,1720426241138,-693.87,0.00057534,120]
[331461805,1720426241147,-693.87,0.00057534,120]
[331461806,1720426241157,-693.87,0.00057534,120]
[331461807,1720426241166,-693.87,0.00057534,120]
[331461808,1720426241175,-500.0,0.00057534,120]
[331461809,1720426241184,-693.87,0.00057534,120]
[331461810,1720426241193,-693.87,0.00057534,120]
[331461811,1720426241202,-693.87,0.00057534,120]
[331461812,1720426241211,-500.0,0.00057534,120]
[331461813,1720426241220,-693.87,0.00057534,120]
[331461814,1720426241229,-693.87,0.00057534,120]
[331461815,1720426241238,-500.0,0.00057534,120]
[331461816,1720426241247,-693.87,0.00057534,120]
[331461817,1720426241256,-693.87,0.00057534,120]
[331461818,1720426241265,-693.87,0.00057534,120]
[331461819,1720426241274,-693.87,0.00057534,120]
[331461820,1720426241283,-693.87,0.00057534,120]
[331461821,1720426241292,-693.87,0.00057534,120]
[331461822,1720426241359,-693.87,0.00057534,120]
[331461823,1720426241380,-693.87,0.00057534,120]
[331461824,1720426241390,-693.87,0.00057534,120]
[331461825,1720426241399,-693.87,0.00057534,120]
[331461826,1720426241409,-693.87,0.00057534,120]
[331461827,1720426241418,-693.87,0.00057534,120]
[331461828,1720426241427,-693.87,0.00057534,120]
[331461829,1720426241437,-693.87,0.00057534,120]
[331461830,1720426241452,-693.98744396,0.00057534,120]
[331461831,1720426241462,-500.0,0.00057534,120]
[331461832,1720426241471,-500.0,0.00057534,120]
[331461833,1720426241482,-500.0,0.00057534,120]
[331461834,1720426241491,-500.0,0.00057534,120]
[331461835,1720426241502,-500.0,0.00057534,120]
[331461836,1720426241511,-500.0,0.00057534,120]
[331461837,1720426241521,-500.0,0.00057534,120]
[331461838,1720426241531,-500.0,0.00057534,120]
[331461839,1720426241540,-517.09287822,0.00057534,120]
[331461840,1720426241550,-500.0,0.00057534,120]
[331461841,1720426241559,-303.361657,0.00057534,120]
[331461842,1720426241569,-303.361657,0.00057534,120]
[331461843,1720426241578,-303.361657,0.00057534,120]
[331461844,1720426241587,-303.361657,0.00057534,120]
[331461845,1720426241596,-303.361657,0.00057534,120]
[331461846,1720426241606,-303.361657,0.00057534,120]
[331461847,1720426241615,-500.0,0.00057534,120]
[331461848,1720426241629,-2024.18,0.00057534,120]
[331461849,1720426241639,-500.0,0.00057534,120]
[331461850,1720426241648,-500.0,0.00057534,120]
[331461851,1720426241657,-500.0,0.00057534,120]
[331461852,1720426241667,-500.0,0.00057534,120]
[331461853,1720426241676,-500.0,0.00057534,120]
[331461854,1720426241685,-500.0,0.00057534,120]
[331461855,1720426241694,-500.0,0.00057534,120]
[331461856,1720426241703,-500.0,0.00057534,120]
[331461857,1720426241712,-500.0,0.00057534,120]
[331461858,1720426241721,-500.0,0.00057534,120]
[331461859,1720426241730,-500.0,0.00057534,120]
[331461860,1720426241739,-500.0,0.00057534,120]
[331461861,1720426241748,-500.0,0.00057534,120]
[331461862,1720426241757,-500.0,0.00057534,120]
[331461863,1720426241766,-500.0,0.00057534,120]
[331461864,1720426241775,-500.0,0.00057534,120]
[331461865,1720426241784,-500.0,0.00057534,120]
[331461866,1720426241794,-500.0,0.00057534,120]
[331461867,1720426241803,-500.0,0.00057534,120]
[331461868,1720426241812,-500.0,0.00057534,120]
[331461869,1720426241821,-500.0,0.00057534,120]
[331461870,1720426241831,-500.0,0.00057534,120]
[331461871,1720426241840,-408.50860824,0.00057534,120]
[331461872,1720426241849,-500.0,0.00057534,120]
[331461873,1720426241858,-1036.2,0.00057534,120]
[331461874,1720426241875,-500.0,0.00057534,120]
[331461875,1720426241884,-511.38,0.00057534,120]
[331461876,1720426241893,-2140.0,0.00057534,60]
[331461877,1720426241902,-500.0,0.00057534,120]
[331461878,1720426241912,-500.0,0.00057534,120]
[331461879,1720426241921,-500.0,0.00057534,120]
[331461880,1720426241931,-500.0,0.00057534,120]
[331461881,1720426241941,-500.0,0.00057534,120]
[331461882,1720426241950,-500.0,0.00057534,120]
[331461883,1720426241959,-500.0,0.00057534,120]
[331461884,1720426241969,-500.0,0.00057534,120]
[331461885,1720426241979,-524.32,0.00057534,120]
[331461886,1720426241991,-500.0,0.00057534,120]
[331461887,1720426242000,-500.0,0.00057534,120]
[331461888,1720426242009,-507.45396154,0.00057534,120]
[331461889,1720426242019,-500.0,0.00057534,120]
[331461890,1720426242028,-500.0,0.00057534,120]
[331461891,1720426242037,-1020.4,0.00057534,120]
[331461892,1720426242047,-521.32037622,0.00057534,120]
[331461893,1720426242056,-1395.67,0.00057534,120]
[331461894,1720426242066,-500.0,0.00057534,120]
[331461895,1720426242076,-557.35,0.00057534,120]
[331461896,1720426242085,-500.0,0.00057534,120]
[331461897,1720426242094,-1000.0,0.00057534,120]
[331461898,1720426242104,-925.08,0.00057534,120]
[331461900,1720426242113,-501.55932347,0.00057534,120]
[331461901,1720426242126,-412.292981,0.00057534,120]
[331461902,1720426242135,-412.292981,0.00057534,120]
[331461903,1720426242144,-412.292981,0.00057534,120]
[331461904,1720426242153,-412.292981,0.00057534,120]
[331461905,1720426242162,-412.292981,0.00057534,120]
[331461906,1720426242171,-412.292981,0.00057534,120]
[331461907,1720426242180,-500.0,0.00057534,120]
[331461908,1720426242189,-412.292981,0.00057534,120]
[331461909,1720426242198,-412.292981,0.00057534,120]
[331461910,1720426242207,-500.0,0.00057534,120]
[331461911,1720426242216,-412.292981,0.00057534,120]
[331461912,1720426242226,-412.292981,0.00057534,120]
[331461913,1720426242235,-2369.83,0.00057534,120]
[331461914,1720426242243,-412.292981,0.00057534,120]
[331461915,1720426242252,-412.292981,0.00057534,120]
[331461916,1720426242262,-309.989735,0.00057534,120]
[331461917,1720426242271,-309.989735,0.00057534,120]
[331461918,1720426242280,-309.989735,0.00057534,120]
[331461919,1720426242289,-309.989735,0.00057534,120]
[331461920,1720426242298,-309.989735,0.00057534,120]
[331461921,1720426242307,-309.989735,0.00057534,120]
[331461922,1720426242316,-309.989735,0.00057534,120]
[331461923,1720426242325,-309.989735,0.00057534,120]
[331461924,1720426242334,-309.989735,0.00057534,120]
[331461925,1720426242343,-309.989735,0.00057534,120]
[331461926,1720426242352,-309.989735,0.00057534,120]
[331461927,1720426242362,-309.989735,0.00057534,120]
[331461928,1720426242378,-500.0,0.00057534,120]
[331461929,1720426242387,-173.44407233,0.00057534,120]
[331461930,1720426242396,-899.9,0.00057534,120]
[331461931,1720426242407,-500.0,0.00057534,120]
[331461932,1720426242415,-500.0,0.00057534,120]
[331461933,1720426242424,-509.06145503,0.00057534,120]
[331461934,1720426242433,-509.14157313,0.00057534,120]
[331461935,1720426242443,-513.9321426,0.00057534,120]
[331461936,1720426242452,-500.0,0.00057534,120]
[331461937,1720426242462,-500.0,0.00057534,120]
[331461938,1720426242471,-1414.04,0.00057534,120]
[331461939,1720426242480,-507.83945506,0.00057534,120]
[331461940,1720426242489,-162.530728,0.00057534,120]
[331461941,1720426242499,-500.0,0.00057534,120]
[331461942,1720426242508,-1339.05,0.00057534,120]
[331461943,1720426242517,-238.77980863,0.00057534,120]
[331461944,1720426242526,-500.0,0.00057534,120]
[331461945,1720426242535,-226.02081852,0.00057534,120]
[331461946,1720426242544,-493.56785139,0.00057534,120]
[331461947,1720426242553,-186.265752,0.00057534,120]
[331461948,1720426242562,-631.06499971,0.00057534,120]
[331461949,1720426242572,-500.0,0.00057534,120]
[331461950,1720426242581,-307.68218036,0.00057534,120]
[331461951,1720426242590,-522.75456289,0.00057534,120]
[331461952,1720426242598,-500.0,0.00057534,120]
[331461953,1720426242607,-500.0,0.00057534,120]
[331461954,1720426242616,-500.0,0.00057534,120]
[331461955,1720426242627,-217.690152,0.00057534,120]
[331461956,1720426242636,-500.0,0.00057534,120]
[331461957,1720426242645,-500.0,0.00057534,120]
[331461958,1720426242654,-500.0,0.00057534,120]
[331461959,1720426242664,-500.0,0.00057534,120]
[331461960,1720426242673,-500.0,0.00057534,120]
[331461961,1720426242682,-500.0,0.00057534,120]
[331461962,1720426242692,-500.0,0.00057534,120]
[331461963,1720426242701,-500.0,0.00057534,120]
[331461964,1720426242710,-500.0,0.00057534,120]
[331461965,1720426242719,-500.0,0.00057534,120]
[331461966,1720426242728,-500.0,0.00057534,120]
[331461967,1720426242738,-500.0,0.00057534,120]
[331461968,1720426242747,-500.0,0.00057534,120]
[331461969,1720426242756,-500.0,0.00057534,120]
[331461970,1720426242765,-500.0,0.00057534,120]
[331461971,1720426242775,-245.10647386,0.00057534,120]
[331461972,1720426242784,-1182.78,0.00057534,120]
[331461973,1720426242794,-500.0,0.00057534,120]
[331461974,1720426242803,-3292.02,0.00057534,120]
[331461975,1720426242814,-500.0,0.00057534,120]
[331461976,1720426242823,-823.55,0.00057534,120]
[331461977,1720426242834,-823.55,0.00057534,120]
[331461978,1720426242843,-823.55,0.00057534,120]
[331461979,1720426242853,-517.20444976,0.00057534,120]
[331461980,1720426242863,-823.55,0.00057534,120]
[331461981,1720426242873,-823.55,0.00057534,120]
[331461982,1720426242884,-823.55,0.00057534,120]
[331461983,1720426242893,-823.55,0.00057534,120]
[331461984,1720426242903,-500.0,0.00057534,120]
[331461985,1720426242912,-823.55,0.00057534,120]
[331461986,1720426242983,-823.55,0.00057534,120]
[331461987,1720426242992,-823.55,0.00057534,120]
[331461988,1720426243001,-506.70309239,0.00057534,120]
[331461989,1720426243010,-823.55,0.00057534,120]
[331461991,1720426243019,-823.55,0.00057534,120]
[331461992,1720426243028,-823.55,0.00057534,120]
[331461994,1720426243037,-500.0,0.00057534,120]
[331461996,1720426243046,-823.55,0.00057534,120]
[331461998,1720426243055,-823.55,0.00057534,120]
[331462000,1720426243064,-823.55,0.00057534,120]
[331462001,1720426243073,-823.55,0.00057534,120]
[331462002,1720426243083,-823.55,0.00057534,120]
[331462004,1720426243092,-823.55,0.00057534,120]
[331462006,1720426243101,-823.55,0.00057534,120]
[331462008,1720426243110,-823.55,0.00057534,120]
[331462011,1720426243119,-823.55,0.00057534,120]
[331462013,1720426243132,-823.55,0.00057534,120]
[331462016,1720426243141,-823.63521076,0.00057534,120]
[331462018,1720426243150,-1500.0,0.00057534,14]
[331462019,1720426243159,-1500.0,0.00057534,14]
[331462020,1720426243168,-1500.0,0.00057534,14]
[331462021,1720426243177,-210.0681247,0.00057534,120]
[331462022,1720426243186,-991.015589,0.00057534,14]
[331462023,1720426243195,-529.93098363,0.00057534,120]
[331462024,1720426243205,-1000.0,0.00057534,120]
[331462025,1720426243214,-500.0,0.00057534,120]
[331462026,1720426243223,-874.74,0.00057534,120]
[331462027,1720426243233,-500.0,0.00057534,120]
[331462028,1720426243243,-500.0,0.00057534,120]
[331462029,1720426243254,-510.26779255,0.00057534,120]
[331462030,1720426243263,-1608.24,0.00057534,120]
[331462031,1720426243272,-514.23803187,0.00057534,120]
[331462032,1720426243282,-513.58861862,0.00057534,120]
[331462033,1720426243291,-515.02065842,0.00057534,120]
[331462034,1720426243300,-3862.13977516,0.00057534,120]
[331462044,1720426243683,-167.4380985,0.00043734,2]
[331462045,1720426243693,-9179.18022484,0.00057534,120]
[331462046,1720426243702,-1072.59,0.00057534,120]
[331462047,1720426243712,-500.0,0.00057534,120]
[331462048,1720426243721,-500.0,0.00057534,120]
[331462049,1720426243731,-500.0,0.00057534,120]
[331462050,1720426243740,-515.85036784,0.00057534,120]
[331462051,1720426243749,-500.0,0.00057534,120]
[331462052,1720426243758,-500.0,0.00057534,120]
[331462053,1720426243768,-500.0,0.00057534,120]
[331462054,1720426243777,-500.0,0.00057534,120]
[331462055,1720426243786,-500.0,0.00057534,120]
[331462056,1720426243796,-500.0,0.00057534,120]
[331462057,1720426243805,-500.0,0.00057534,120]
[331462058,1720426243814,-500.0,0.00057534,120]
[331462059,1720426243824,-500.0,0.00057534,120]
[331462060,1720426243833,-812.372887,0.00057534,120]
[331462061,1720426243842,-812.372887,0.00057534,120]
[331462062,1720426243852,-812.372887,0.00057534,120]
[331462063,1720426243861,-812.372887,0.00057534,120]
[331462064,1720426243871,-812.372887,0.00057534,120]
[331462065,1720426243882,-812.372887,0.00057534,120]
[331462066,1720426243892,-812.372887,0.00057534,120]
[331462067,1720426243901,-500.0,0.00057534,120]
[331462068,1720426243910,-812.372887,0.00057534,120]
[331462069,1720426243920,-812.372887,0.00057534,120]
[331462070,1720426243929,-3248.42,0.00057534,120]
[331462071,1720426243938,-812.372887,0.00057534,120]
[331462072,1720426243948,-3248.42,0.00057534,120]
[331462073,1720426243957,-812.372887,0.00057534,120]
[331462074,1720426243967,-3248.42,0.00057534,120]
[331462075,1720426243976,-812.372895,0.00057534,120]
[331462076,1720426243985,-3248.42,0.00057534,120]
[331462077,1720426243995,-500.0,0.00057534,120]
[331462078,1720426244004,-632.14,0.00057534,120]
[331462079,1720426244013,-3248.42,0.00057534,120]
[331462080,1720426244023,-3248.42,0.00057534,120]
[331462081,1720426244032,-3248.42,0.00057534,120]
[331462082,1720426244041,-3248.42,0.00057534,120]
[331462083,1720426244050,-500.0,0.00057534,120]
[331462084,1720426244059,-3248.42,0.00057534,120]
[331462085,1720426244068,-3248.42,0.00057534,120]
[331462086,1720426244077,-3248.42,0.00057534,120]
[331462087,1720426244087,-3248.42,0.00057534,120]
[331462088,1720426244096,-3248.42,0.00057534,120]
[331462089,1720426244105,-3248.42,0.00057534,120]
[331462090,1720426244114,-3248.42,0.00057534,120]
[331462091,1720426244125,-3248.42,0.00057534,120]
[331462092,1720426244134,-3248.42,0.00057534,120]
[331462093,1720426244143,-3248.42,0.00057534,120]
[331462094,1720426244152,-3248.42,0.00057534,120]
[331462095,1720426244162,-3248.42,0.00057534,120]
[331462096,1720426244171,-3248.42,0.00057534,120]
[331462097,1720426244180,-1198.75,0.00057534,120]
[331462098,1720426244190,-3248.42,0.00057534,120]
[331462099,1720426244199,-3248.42,0.00057534,120]
[331462100,1720426244208,-3248.60894323,0.00057534,120]
[331462101,1720426244218,-500.0,0.00057534,120]
[331462102,1720426244227,-500.0,0.00057534,120]
[331462103,1720426244236,-500.0,0.00057534,120]
[331462104,1720426244245,-161.535327,0.00057534,120]
[331462105,1720426244254,-161.535327,0.00057534,120]
[331462106,1720426244263,-161.535327,0.00057534,120]
[331462107,1720426244272,-161.535327,0.00057534,120]
[331462108,1720426244282,-161.535327,0.00057534,120]
[331462109,1720426244291,-161.535327,0.00057534,120]
[331462110,1720426244300,-4147.17,0.00057534,120]
[331462111,1720426244309,-161.535327,0.00057534,120]
[331462112,1720426244319,-161.535327,0.00057534,120]
[331462113,1720426244328,-161.535327,0.00057534,120]
[331462114,1720426244337,-161.53532,0.00057534,120]
[331462116,1720426244346,-500.0,0.00057534,120]
[331462117,1720426244355,-180.71333506,0.00057534,120]
[331462118,1720426244365,-500.0,0.00057534,120]
[331462119,1720426244379,-500.0,0.00057534,120]
[331462121,1720426244389,-506.93604909,0.00057534,120]
[331462123,1720426244398,-633.28004618,0.00057534,120]
[331462124,1720426244407,-235.56290883,0.00057534,120]
[331462125,1720426244417,-500.0,0.00057534,120]
[331462127,1720426244426,-500.0,0.00057534,120]
[331462128,1720426244435,-500.0,0.00057534,120]
[331462129,1720426244512,-500.0,0.00057534,120]
[331462130,1720426244522,-659.27,0.00057534,120]
[331462131,1720426244531,-500.0,0.00057534,120]
[331462132,1720426244540,-513.33974616,0.00057534,120]
[331462133,1720426244549,-386.51422723,0.00057534,120]
[331462134,1720426244559,-255.26140429,0.00057534,120]
[331462135,1720426244568,-1177.67,0.00057534,120]
[331462136,1720426244577,-500.0,0.00057664,120]
[331462137,1720426244587,-500.0,0.00057664,120]
[331462138,1720426244596,-5053.07008519,0.00057707,2]
[331462139,1720426244605,-267.854686,0.0005781,120]
[331462140,1720426244615,-267.854686,0.0005781,120]
[331462141,1720426244626,-500.0,0.00057899,120]
[331462142,1720426244635,-500.0,0.00057899,120]
[331462143,1720426244645,-303.361657,0.00057899,120]
[331462144,1720426244654,-303.361657,0.00057899,120]
[331462145,1720426244664,-999.0,0.00057923,120]
[331462146,1720426244674,-5053.07008519,0.00057935,2]
[331462147,1720426244684,-500.0,0.00057998,120]
[331462148,1720426244693,-500.0,0.00057998,120]
[331462149,1720426244703,-5053.07008519,0.00058191,2]
[331462150,1720426244712,-999.0,0.00058334,120]
[331462151,1720426244722,-154.87169365,0.00058384,120]
[331462152,1720426244731,-241.3222,0.00058482,2]
[331462153,1720426244740,-151.07444044,0.00058522,60]
[331462154,1720426244750,-154.87169365,0.0005853,120]
[331462155,1720426244760,-5053.07008519,0.0005854,2]
[331462156,1720426244771,-154.87169365,0.00058636,120]
[331462157,1720426244780,-154.87169365,0.00058743,120]
[331462158,1720426244790,-999.0,0.00058745,120]
[331462159,1720426244799,-500.0,0.00058889,120]
[331462160,1720426244808,-500.0,0.00058889,120]
[331462161,1720426244818,-500.0,0.00058899,120]
[331462162,1720426244827,-500.0,0.00058899,120]
[331462163,1720426244836,-267.854686,0.00058899,120]
[331462164,1720426244845,-267.854686,0.00058899,120]
[331462165,1720426244854,-500.0,0.00058899,120]
[331462166,1720426244865,-169.44,0.00058899,120]
[331462167,1720426244878,-5053.07008519,0.00058901,2]
[331462168,1720426244888,-12194.76852203,0.00059,30]
[331462169,1720426244899,-303.361657,0.00059,120]
[331462170,1720426244908,-303.361657,0.00059,120]
[331462171,1720426244919,-412.292981,0.00059,120]
[331462172,1720426244928,-412.292981,0.00059,120]
[331462173,1720426244938,-309.989735,0.00059,120]
[331462174,1720426244948,-309.989735,0.00059,120]
[331462175,1720426244958,-151.0,0.00059,120]
[331462176,1720426244967,-151.0,0.00059,120]
[331462177,1720426244977,-5053.07008531,0.00059064,2]
[331462178,1720426244987,-500.0,0.000591,120]
[331462179,1720426244997,-999.0,0.00059156,120]
[331462180,1720426245006,-999.0,0.00059567,120]
[331462181,1720426245017,-194.23989892,0.000599,120]
[331462182,1720426245026,-194.73,0.000599,120]
[331462183,1720426245035,-500.0,0.00059978,120]
[331462184,1720426245045,-999.0,0.00059978,120]
[331462185,1720426245055,-4900.0,0.0006,15]
[331462186,1720426245064,-1000.0,0.0006,120]
[331462187,1720426245074,-1000.0,0.0006,120]
[331462188,1720426245083,-1000.0,0.0006,120]
[331462189,1720426245093,-1000.0,0.0006,120]
[331462190,1720426245102,-1000.0,0.0006,120]
[331462191,1720426245112,-1000.0,0.0006,120]
[331462192,1720426245121,-454.0,0.0006,120]
[331462193,1720426245135,-1000.0,0.0006,120]
[331462194,1720426245144,-1099.98029218,0.0006,120]
[331462195,1720426245154,-10000.0,0.0006,30]
[331462196,1720426245163,-2075.38654394,0.0006,120]
[331462197,1720426245173,-267.854686,0.0006,120]
[331462198,1720426245182,-267.854686,0.0006,120]
[331462199,1720426245192,-182.0,0.0006,120]
[331462200,1720426245201,-500.0,0.00060062,120]
[331462201,1720426245211,-303.361657,0.00060062,120]
[331462202,1720426245221,-303.361657,0.00060062,120]
[331462203,1720426245230,-22374.66457542,0.00060063,90]
[331462204,1720426245239,-267.854686,0.00060063,120]
[331462205,1720426245248,-267.854686,0.00060063,120]
[331462206,1720426245257,-412.292981,0.00060063,120]
[331462207,1720426245267,-412.292981,0.00060063,120]
[331462208,1720426245276,-309.989735,0.00060063,120]
[331462209,1720426245285,-309.98974,0.00060063,120]
[331462210,1720426245294,-157.59667048,0.00060259,120]
[331462211,1720426245303,-999.0,0.00060389,120]
[331462212,1720426245312,-154.87169365,0.00060498,120]
[331462213,1720426245321,-156.8926884,0.00060558,120]
[331462214,1720426245330,-500.0,0.00060645,120]
[331462215,1720426245339,-999.0,0.000608,120]